fUST/lending_fUST_20240729
["ID","MTS","AMOUNT","RATE_DAILY","PERIOD"]
[333590332,1722262242186,-500.0,0.00013698,2]
[333590334,1722262242196,-500.0,0.00013698,2]
[333590336,1722262242205,-500.0,0.00013698,2]
[333590338,1722262242218,-500.0,0.00013698,2]
[333590340,1722262242227,-500.0,0.00013698,2]
[333590342,1722262242237,-500.0,0.00013698,2]
[333590344,1722262242248,-500.0,0.00013698,2]
[333590346,1722262242260,-151.0,0.00013698,2]
[333590348,1722262242269,-500.0,0.00013698,2]
[333590350,1722262242279,-506.65295001,0.00013698,2]
[333590352,1722262242288,-500.0,0.00013698,2]
[333590354,1722262242299,-500.0,0.00013698,2]
[333590356,1722262242309,-500.0,0.00013698,2]
[333590358,1722262242319,-500.0,0.00013698,2]
[333590360,1722262242330,-500.0,0.00013698,2]
[333590362,1722262242342,-500.0,0.00013698,2]
[333590364,1722262242352,-500.0,0.00013698,2]
[333590366,1722262242363,-500.71151987,0.00013698,2]
[333590368,1722262242374,-538.95614351,0.00013698,2]
[333590370,1722262242384,-500.0,0.00013698,2]
[333590372,1722262242394,-500.0,0.00013698,2]
[333590374,1722262242403,-500.0,0.00013698,2]
[333590376,1722262242413,-500.0,0.00013698,2]
[333590378,1722262242422,-500.0,0.00013698,2]
[333590380,1722262242432,-500.0,0.00013698,2]
[333590382,1722262242442,-500.0,0.00013698,2]
[333590384,1722262242452,-500.0,0.00013698,2]
[333590386,1722262242462,-500.0,0.00013698,2]
[333590388,1722262242480,-500.0,0.00013698,2]
[333590390,1722262242491,-500.0,0.00013698,2]
[333590392,1722262242502,-500.0,0.00013698,2]
[333590394,1722262242512,-500.0,0.00013698,2]
[333590396,1722262242522,-500.0,0.00013698,2]
[333590398,1722262242531,-500.0,0.00013698,2]
[333590400,1722262242542,-261.77221102,0.00013698,2]
[333590402,1722262242552,-500.0,0.00013698,2]
[333590404,1722262242562,-500.0,0.00013698,2]
[333590406,1722262242572,-500.0,0.00013698,2]
[333590408,1722262242581,-500.0,0.00013698,2]
[333590410,1722262242591,-500.0,0.00013698,2]
[333590412,1722262242601,-500.94646224,0.00013698,2]
[333590414,1722262242610,-500.0,0.00013698,2]
[333590416,1722262242621,-543.33350405,0.00013698,2]
[333590418,1722262242632,-500.0,0.00013698,2]
[333590420,1722262242641,-500.0,0.00013698,2]
[333590422,1722262242651,-500.0,0.00013698,2]
[333590424,1722262242660,-501.02034836,0.00013698,2]
[333590426,1722262242671,-500.0,0.00013698,2]
[333590428,1722262242681,-500.0,0.00013698,2]
[333590430,1722262242690,-500.0,0.00013698,2]
[333590432,1722262242700,-500.0,0.00013698,2]
[333590434,1722262242709,-500.0,0.00013698,2]
[333590436,1722262242723,-500.0,0.00013698,2]
[333590438,1722262242734,-500.0,0.00013698,2]
[333590441,1722262242743,-500.0,0.00013698,2]
[333590443,1722262242753,-500.0,0.00013698,2]
[333590445,1722262242762,-500.0,0.00013698,2]
[333590447,1722262242772,-500.0,0.00013698,2]
[333590449,1722262242783,-613.97925826,0.00013698,2]
[333590451,1722262242792,-500.0,0.00013698,2]
[333590453,1722262242802,-500.0,0.00013698,2]
[333590455,1722262242812,-500.0,0.00013698,2]
[333590457,1722262242822,-500.0,0.00013698,2]
[333590459,1722262242832,-151.0,0.00013698,2]
[333590461,1722262242842,-151.0,0.00013698,2]
[333590463,1722262242852,-151.0,0.00013698,2]
[333590465,1722262242863,-258.551724,0.00013698,2]
[333590467,1722262242873,-500.0,0.00013698,2]
[333590469,1722262242883,-500.0,0.00013698,2]
[333590471,1722262242892,-500.0,0.00013698,2]
[333590473,1722262242902,-500.0,0.00013698,2]
[333590476,1722262242911,-500.0,0.00013698,2]
[333590478,1722262242921,-500.91154267,0.00013698,2]
[333590481,1722262242930,-500.0,0.00013698,2]
[333590483,1722262242939,-500.0,0.00013698,2]
[333590485,1722262242949,-243.12460579,0.00013698,2]
[333590487,1722262242959,-500.0,0.00013698,2]
[333590489,1722262242975,-500.0,0.00013698,2]
[333590491,1722262242985,-500.0,0.00013698,2]
[333590493,1722262242994,-333.85852225,0.00013698,2]
[333590495,1722262243004,-151.0,0.00013698,2]
[333590497,1722262243014,-500.0,0.00013698,2]
[333590499,1722262243024,-501.43147663,0.00013698,2]
[333590500,1722262243034,-508.76286767,0.00013698,2]
[333590502,1722262243043,-500.0,0.00013698,2]
[333590504,1722262243052,-500.0,0.00013698,2]
[333590506,1722262243061,-500.0,0.00013698,2]
[333590508,1722262243070,-500.0,0.00013698,2]
[333590510,1722262243080,-500.0,0.00013698,2]
[333590512,1722262243089,-500.0,0.00013698,2]
[333590514,1722262243099,-500.0,0.00013698,2]
[333590516,1722262243110,-500.0,0.00013698,2]
[333590518,1722262243120,-500.0,0.00013698,2]
[333590520,1722262243130,-500.0,0.00013698,2]
[333590522,1722262243140,-467.85424281,0.00013698,2]
[333590524,1722262243150,-500.0,0.00013698,2]
[333590526,1722262243160,-500.0,0.00013698,2]
[333590528,1722262243169,-160.8196939,0.00013698,2]
[333590530,1722262243179,-341.72143014,0.00013698,2]
[333590532,1722262243189,-500.0,0.00013698,2]
[333590534,1722262243199,-500.0,0.00013698,2]
[333590536,1722262243209,-500.0,0.00013698,2]
[333590537,1722262243222,-500.0,0.00013698,2]
[333590539,1722262243232,-500.0,0.00013698,2]
[333590541,1722262243242,-500.0,0.00013698,2]
[333590543,1722262243251,-500.0,0.00013698,2]
[333590545,1722262243260,-500.0,0.00013698,2]
[333590547,1722262243270,-500.0,0.00013698,2]
[333590549,1722262243279,-500.0,0.00013698,2]
[333590551,1722262243289,-500.0,0.00013698,2]
[333590553,1722262243299,-503.00260169,0.00013698,2]
[333590555,1722262243310,-500.0,0.00013698,2]
[333590557,1722262243320,-500.0,0.00013698,2]
[333590559,1722262243329,-500.0,0.00013698,2]
[333590561,1722262243339,-500.0,0.00013698,2]
[333590563,1722262243350,-500.0,0.00013698,2]
[333590564,1722262243363,-500.0,0.00013698,2]
[333590565,1722262243373,-500.0,0.00013698,2]
[333590566,1722262243383,-500.0,0.00013698,2]
[333590567,1722262243392,-500.0,0.00013698,2]
[333590568,1722262243403,-500.0,0.00013698,2]
[333590569,1722262243412,-277.69782419,0.00013698,2]
[333590570,1722262243421,-500.0,0.00013698,2]
[333590571,1722262243431,-500.0,0.00013698,2]
[333590572,1722262243441,-500.0,0.00013698,2]
[333590573,1722262243450,-500.0,0.00013698,2]
[333590574,1722262243459,-527.29169554,0.00013698,2]
[333590575,1722262243472,-500.0,0.00013698,2]
[333590576,1722262243482,-500.0,0.00013698,2]
[333590577,1722262243492,-500.0,0.00013698,2]
[333590578,1722262243502,-519.59637236,0.00013698,2]
[333590579,1722262243512,-500.0,0.00013698,2]
[333590581,1722262243526,-500.0,0.00013698,2]
[333590583,1722262243535,-500.0,0.00013698,2]
[333590585,1722262243544,-500.0,0.00013698,2]
[333590587,1722262243554,-503.631483,0.00013698,2]
[333590589,1722262243565,-529.73210428,0.00013698,2]
[333590591,1722262243574,-500.0,0.00013698,2]
[333590593,1722262243583,-151.0,0.00013698,2]
[333590595,1722262243594,-151.0,0.00013698,2]
[333590598,1722262243606,-151.0,0.00013698,2]
[333590600,1722262243615,-151.0,0.00013698,2]
[333590603,1722262243625,-201.519168,0.00013698,2]
[333590606,1722262243634,-500.0,0.00013698,2]
[333590609,1722262243645,-500.0,0.00013698,2]
[333590611,1722262243655,-500.0,0.00013698,2]
[333590613,1722262243664,-500.0,0.00013698,2]
[333590615,1722262243674,-151.0,0.00013698,2]
[333590617,1722262243683,-151.0,0.00013698,2]
[333590619,1722262243693,-500.0,0.00013698,2]
[333590622,1722262243703,-500.0,0.00013698,2]
[333590625,1722262243719,-500.0,0.00013698,2]
[333590628,1722262243729,-500.0,0.00013698,2]
[333590631,1722262243739,-500.0,0.00013698,2]
[333590634,1722262243749,-500.0,0.00013698,2]
[333590637,1722262243759,-500.0,0.00013698,2]
[333590639,1722262243769,-500.0,0.00013698,2]
[333590641,1722262243778,-500.0,0.00013698,2]
[333590643,1722262243788,-500.0,0.00013698,2]
[333590645,1722262243797,-500.0,0.00013698,2]
[333590647,1722262243807,-500.0,0.00013698,2]
[333590649,1722262243817,-500.0,0.00013698,2]
[333590651,1722262243826,-500.0,0.00013698,2]
[333590653,1722262243836,-500.0,0.00013698,2]
[333590655,1722262243845,-500.0,0.00013698,2]
[333590657,1722262243854,-500.0,0.00013698,2]
[333590659,1722262243864,-500.0,0.00013698,2]
[333590661,1722262243873,-500.0,0.00013698,2]
[333590663,1722262243882,-381.49526831,0.00013698,2]
[333590665,1722262243892,-500.0,0.00013698,2]
[333590667,1722262243902,-500.0,0.00013698,2]
[333590669,1722262243912,-500.0,0.00013698,2]
[333590671,1722262243921,-500.0,0.00013698,2]
[333590674,1722262243931,-500.0,0.00013698,2]
[333590676,1722262243940,-500.0,0.00013698,2]
[333590678,1722262243952,-500.0,0.00013698,2]
[333590680,1722262243961,-505.22080051,0.00013698,2]
[333590682,1722262243976,-500.0,0.00013698,2]
[333590684,1722262243985,-500.0,0.00013698,2]
[333590686,1722262243995,-500.0,0.00013698,2]
[333590688,1722262244004,-500.0,0.00013698,2]
[333590690,1722262244016,-500.0,0.00013698,2]
[333590692,1722262244025,-502.38333647,0.00013698,2]
[333590694,1722262244034,-500.0,0.00013698,2]
[333590696,1722262244044,-500.0,0.00013698,2]
[333590698,1722262244054,-500.0,0.00013698,2]
[333590700,1722262244064,-501.26766074,0.00013698,2]
[333590702,1722262244074,-500.0,0.00013698,2]
[333590704,1722262244083,-500.0,0.00013698,2]
[333590706,1722262244092,-500.0,0.00013698,2]
[333590708,1722262244103,-500.0,0.00013698,2]
[333590710,1722262244113,-500.0,0.00013698,2]
[333590712,1722262244122,-500.0,0.00013698,2]
[333590714,1722262244132,-500.0,0.00013698,2]
[333590716,1722262244141,-500.0,0.00013698,2]
[333590718,1722262244151,-500.0,0.00013698,2]
[333590720,1722262244162,-500.0,0.00013698,2]
[333590722,1722262244173,-500.0,0.00013698,2]
[333590724,1722262244182,-500.0,0.00013698,2]
[333590726,1722262244192,-500.0,0.00013698,2]
[333590728,1722262244202,-500.0,0.00013698,2]
[333590730,1722262244215,-500.0,0.00013698,2]
[333590733,1722262244228,-500.0,0.00013698,2]
[333590735,1722262244239,-542.11641882,0.00013698,2]
[333590737,1722262244250,-500.0,0.00013698,2]
[333590739,1722262244261,-501.27116887,0.00013698,2]
[333590741,1722262244271,-297.62054279,0.00013698,2]
[333590743,1722262244281,-500.0,0.00013698,2]
[333590745,1722262244291,-502.71358584,0.00013698,2]
[333590747,1722262244301,-500.0,0.00013698,2]
[333590749,1722262244310,-500.0,0.00013698,2]
[333590751,1722262244320,-500.0,0.00013698,2]
[333590753,1722262244330,-500.0,0.00013698,2]
[333590755,1722262244340,-500.0,0.00013698,2]
[333590757,1722262244349,-500.0,0.00013698,2]
[333590768,1722262244445,-500.0,0.00013698,2]
[333590770,1722262244455,-500.0,0.00013698,2]
[333590772,1722262244469,-500.0,0.00013698,2]
[333590774,1722262244478,-500.0,0.00013698,2]
[333590776,1722262244487,-500.98111871,0.00013698,2]
[333590778,1722262244497,-500.0,0.00013698,2]
[333590780,1722262244506,-500.0,0.00013698,2]
[333590782,1722262244518,-500.0,0.00013698,2]
[333590784,1722262244527,-500.0,0.00013698,2]
[333590786,1722262244540,-501.24379968,0.00013698,2]
[333590788,1722262244549,-500.0,0.00013698,2]
[333590790,1722262244559,-500.0,0.00013698,2]
[333590792,1722262244570,-500.0,0.00013698,2]
[333590794,1722262244579,-595.10420466,0.00013698,2]
[333590796,1722262244589,-500.0,0.00013698,2]
[333590798,1722262244598,-500.0,0.00013698,2]
[333590800,1722262244608,-500.0,0.00013698,2]
[333590802,1722262244619,-500.0,0.00013698,2]
[333590804,1722262244628,-500.0,0.00013698,2]
[333590806,1722262244638,-570.22971313,0.00013698,2]
[333590809,1722262244648,-500.0,0.00013698,2]
[333590811,1722262244659,-500.0,0.00013698,2]
[333590813,1722262244668,-500.0,0.00013698,2]
[333590815,1722262244677,-500.0,0.00013698,2]
[333590817,1722262244686,-500.0,0.00013698,2]
[333590819,1722262244696,-500.0,0.00013698,2]
[333590821,1722262244707,-500.0,0.00013698,2]
[333590823,1722262244719,-500.0,0.00013698,2]
[333590825,1722262244729,-500.0,0.00013698,2]
[333590827,1722262244738,-500.0,0.00013698,2]
[333590829,1722262244747,-500.0,0.00013698,2]
[333590831,1722262244757,-385.99031073,0.00013698,2]
[333590833,1722262244767,-500.0,0.00013698,2]
[333590835,1722262244776,-500.0,0.00013698,2]
[333590837,1722262244786,-500.0,0.00013698,2]
[333590839,1722262244795,-500.0,0.00013698,2]
[333590841,1722262244805,-309.79069733,0.00013698,2]
[333590843,1722262244815,-500.0,0.00013698,2]
[333590845,1722262244824,-500.0,0.00013698,2]
[333590847,1722262244834,-513.52323146,0.00013698,2]
[333590849,1722262244843,-500.0,0.00013698,2]
[333590851,1722262244853,-500.0,0.00013698,2]
[333590853,1722262244863,-500.0,0.00013698,2]
[333590855,1722262244872,-500.0,0.00013698,2]
[333590857,1722262244882,-500.0,0.00013698,2]
[333590859,1722262244891,-455.33328296,0.00013698,2]
[333590930,1722262245566,-44.66671704,0.00013698,2]
[333590932,1722262245577,-841.477967,0.00013698,2]
[333590934,1722262245586,-500.0,0.00013698,2]
[333590936,1722262245595,-841.477967,0.00013698,2]
[333590938,1722262245605,-841.477967,0.00013698,2]
[333590939,1722262245614,-841.477967,0.00013698,2]
[333590941,1722262245624,-841.477967,0.00013698,2]
[333590943,1722262245633,-500.0,0.00013698,2]
[333590945,1722262245643,-310.92980886,0.00013698,2]
[333590967,1722262245863,-189.07019114,0.00013698,2]
[333590968,1722262245875,-500.0,0.00013698,2]
[333590970,1722262245885,-841.477967,0.00013698,2]
[333590972,1722262245895,-841.477967,0.00013698,2]
[333590974,1722262245905,-841.477967,0.00013698,2]
[333590976,1722262245915,-841.477967,0.00013698,2]
[333590978,1722262245924,-500.0,0.00013698,2]
[333590980,1722262245933,-841.477967,0.00013698,2]
[333590982,1722262245943,-539.96536952,0.00013698,2]
[333591207,1722262249238,-301.51259748,0.00013698,2]
[333591209,1722262249248,-500.0,0.00013698,2]
[333591211,1722262249259,-552.27963361,0.00013698,2]
[333591213,1722262249269,-841.477967,0.00013698,2]
[333591215,1722262249279,-841.477967,0.00013698,2]
[333591217,1722262249288,-503.02128063,0.00013698,2]
[333591219,1722262249298,-500.0,0.00013698,2]
[333591221,1722262249308,-500.0,0.00013698,2]
[333591223,1722262249318,-841.477967,0.00013698,2]
[333591224,1722262249327,-841.477967,0.00013698,2]
[333591226,1722262249337,-841.477967,0.00013698,2]
[333591228,1722262249347,-841.477967,0.00013698,2]
[333591230,1722262249356,-841.477971,0.00013698,2]
[333591232,1722262249367,-500.0,0.00013698,2]
[333591234,1722262249376,-500.0,0.00013698,2]
[333591236,1722262249386,-500.0,0.00013698,2]
[333591238,1722262249395,-500.0,0.00013698,2]
[333591240,1722262249405,-500.0,0.00013698,2]
[333591242,1722262249415,-500.0,0.00013698,2]
[333591244,1722262249424,-500.0,0.00013698,2]
[333591246,1722262249433,-500.71211976,0.00013698,2]
[333591248,1722262249443,-1.7469723,0.00013698,2]
[333591251,1722262249464,-149.2530277,0.00013698,2]
[333591253,1722262249477,-151.0,0.00013698,2]
[333591255,1722262249486,-110.85877149,0.00013698,2]
[333591257,1722262249497,-389.14122851,0.00013698,2]
[333591259,1722262249506,-500.0,0.00013698,2]
[333591261,1722262249516,-151.0,0.00013698,2]
[333591270,1722262249607,-151.0,0.00013698,2]
[333591272,1722262249618,-151.0,0.00013698,2]
[333591274,1722262249628,-151.0,0.00013698,2]
[333591276,1722262249637,-151.0,0.00013698,2]
[333591278,1722262249647,-500.0,0.00013698,2]
[333591280,1722262249657,-500.0,0.00013698,2]
[333591282,1722262249666,-500.0,0.00013698,2]
[333591284,1722262249677,-151.0,0.00013698,2]
[333591286,1722262249686,-500.0,0.00013698,2]
[333591288,1722262249696,-151.0,0.00013698,2]
[333591290,1722262249706,-151.0,0.00013698,2]
[333591292,1722262249715,-151.0,0.00013698,2]
[333591293,1722262249726,-500.0,0.00013698,2]
[333591294,1722262249735,-151.0,0.00013698,2]
[333591296,1722262249744,-500.0,0.00013698,2]
[333591298,1722262249754,-151.0,0.00013698,2]
[333591300,1722262249763,-151.0,0.00013698,2]
[333591302,1722262249772,-151.0,0.00013698,2]
[333591304,1722262249782,-345.2395312,0.00013698,2]
[333591306,1722262249792,-283.140392,0.00013698,2]
[333591307,1722262249801,-500.0,0.00013698,2]
[333591309,1722262249810,-107.86979328,0.00013698,2]
[333592276,1722262647178,1000.0,0.00023099,120]
[333592277,1722262720856,169.63211473,0.0002,60]
[333592284,1722263043510,157.67039442,9.999e-05,2]
[333592285,1722263124484,8340.67773172,9.999e-05,2]
[333592286,1722263142551,3782.59755445,9.999e-05,2]
[333592292,1722263206181,203.67656339,9.999e-05,2]
[333592294,1722263251295,202.33959701,9.999e-05,2]
[333592299,1722263298029,542.61757791,9.999e-05,2]
[333592302,1722263310611,286.93637188,9.999e-05,2]
[333592487,1722263442161,-250.0,0.0001075,2]
[333592489,1722263442171,-166.666666,0.00011281,2]
[333592491,1722263442181,-250.0,0.00011495,2]
[333592493,1722263442190,-250.0,0.00011527,2]
[333592495,1722263442200,-250.0,0.00011558,2]
[333592497,1722263442209,-166.666666,0.00011589,2]
[333592500,1722263442219,-250.0,0.0001159,2]
[333592502,1722263442230,-250.0,0.00011621,2]
[333592504,1722263442240,-250.0,0.00011653,2]
[333592506,1722263442249,-250.0,0.00011684,2]
[333592508,1722263442259,-250.0,0.00011716,2]
[333592510,1722263442269,-250.0,0.00011747,2]
[333592512,1722263442280,-250.0,0.00011779,2]
[333592513,1722263442290,-300.0,0.00011797,2]
[333592515,1722263442300,-24900.0,0.00011798,2]
[333592517,1722263442310,-250.0,0.0001181,2]
[333592519,1722263442319,-250.0,0.00011842,2]
[333592521,1722263442329,-250.0,0.00011873,2]
[333592523,1722263442339,-166.666666,0.00011896,2]
[333592525,1722263442348,-250.0,0.00011905,2]
[333592527,1722263442358,-775.6515851,0.00011909,2]
[333592529,1722263442367,-250.0,0.00011937,2]
[333592531,1722263442377,-250.0,0.00011968,2]
[333592533,1722263442387,-250.0,0.00012,2]
[333592535,1722263442397,-250.0,0.00012031,2]
[333592537,1722263442407,-250.0,0.00012063,2]
[333592539,1722263442417,-250.0,0.00012094,2]
[333592541,1722263442427,-234.23710611,0.00012119,2]
[333592543,1722263442437,-166.666666,0.00012204,2]
[333592545,1722263442447,-166.666666,0.00012511,2]
[333592547,1722263442457,-166.666666,0.00012819,2]
[333592549,1722263442467,-2226.15737568,0.000129,2]
[333592551,1722263442476,-420.0,0.00012977,2]
[333592553,1722263442486,-190.0,0.00012986,2]
[333592555,1722263442496,-150.112233,0.00013,2]
[333592557,1722263442506,-150.112233,0.000133,2]
[333592559,1722263442516,-572.83690442,0.00013429,2]
[333592560,1722263442528,-572.83690441,0.00013469,2]
[333592561,1722263442538,-150.112233,0.000135,2]
[333592562,1722263442548,-572.83690441,0.00013509,2]
[333592563,1722263442558,-363.3664403,0.00013514,2]
[333592564,1722263442567,-12986.7471203,0.00013518,2]
[333592565,1722263442577,-588.82,0.0001352,2]
[333592566,1722263442587,-42177.06472479,0.00013528,2]
[333592617,1722263443706,-60038.78347844,0.00013528,2]
[333592619,1722263443716,-572.83690441,0.00013548,2]
[333592621,1722263443726,-25973.4942405,0.00013579,2]
[333592623,1722263443736,-572.83690441,0.00013588,2]
[333592625,1722263443745,-88888.0,0.00013589,2]
[333592627,1722263443755,-200.0,0.00013598,2]
[333592629,1722263443764,-2000.0,0.00013598,2]
[333592631,1722263443775,-150.112233,0.000136,2]
[333592633,1722263443785,-150.112233,0.000136,2]
[333592635,1722263443794,-150.112233,0.000136,2]
[333592637,1722263443803,-5156.75688626,0.00013686,2]
[333592639,1722263443812,-87239.48010271,0.00013688,2]
[333592734,1722263450148,-687.7,0.00013688,2]
[333593017,1722264639707,-250.0,0.0001145,2]
[333593020,1722264639718,-166.666666,0.0001155,2]
[333593022,1722264639728,-20155.49351631,0.00011737,2]
[333593228,1722264644612,-4744.50648369,0.00011737,2]
[333593231,1722264644623,-166.666666,0.00011865,2]
[333593233,1722264644633,-300.0,0.00011949,2]
[333593235,1722264644642,-166.666666,0.00012179,2]
[333593237,1722264644652,-250.0,0.00012233,2]
[333593239,1722264644661,-250.0,0.00012266,2]
[333593241,1722264644671,-250.0,0.000123,2]
[333593243,1722264644681,-250.0,0.00012334,2]
[333593245,1722264644690,-250.0,0.00012367,2]
[333593247,1722264644699,-250.0,0.00012401,2]
[333593249,1722264644709,-250.0,0.00012434,2]
[333593251,1722264644718,-250.0,0.00012468,2]
[333593253,1722264644728,-166.666666,0.00012494,2]
[333593255,1722264644741,-250.0,0.00012501,2]
[333593257,1722264644751,-250.0,0.00012535,2]
[333593259,1722264644761,-250.0,0.00012569,2]
[333593261,1722264644771,-250.0,0.00012602,2]
[333593263,1722264644781,-250.0,0.00012636,2]
[333593265,1722264644790,-250.0,0.00012669,2]
[333593267,1722264644799,-250.0,0.00012703,2]
[333593269,1722264644809,-250.0,0.00012736,2]
[333593271,1722264644819,-250.0,0.0001277,2]
[333593273,1722264644828,-250.0,0.00012803,2]
[333593275,1722264644839,-166.666666,0.00012809,2]
[333593277,1722264644850,-250.0,0.00012837,2]
[333593280,1722264644862,-250.0,0.00012871,2]
[333593282,1722264644872,-2269.52410363,0.000129,2]
[333593284,1722264644882,-195.966661,0.00012986,2]
[333593286,1722264644892,-166.666666,0.00013124,2]
[333593288,1722264644901,-420.0,0.00013144,2]
[333593290,1722264644911,-1959.9538232,0.00013498,2]
[333593292,1722264644920,-1959.95382319,0.00013521,2]
[333593294,1722264644932,-1959.95382319,0.00013543,2]
[333593296,1722264644943,-1959.95382319,0.00013566,2]
[333593298,1722264644952,-5000.0,0.00013588,2]
[333593300,1722264644962,-1959.95382319,0.00013588,2]
[333593302,1722264644972,-18146.1531709,0.00013588,2]
[333593304,1722264644983,-1002.47771505,0.00013598,2]
[333593306,1722264644993,-200.0,0.00013598,2]
[333593308,1722264645002,-79388.26941981,0.00013598,2]
[333593311,1722264645014,-1409.54871312,0.00013598,2]
[333593315,1722264645042,-563.99999999,0.00013598,2]
[333593319,1722264645077,-358.28247966,0.00013598,2]
[333593322,1722264645089,-7167.89938742,0.00013598,2]
[333593324,1722264645098,-2000.0,0.00013598,2]
[333593326,1722264645107,-955.0,0.000136,2]
[333593328,1722264645117,-150.112233,0.000136,2]
[333593330,1722264645126,-343.1408998,0.00013616,2]
[333593332,1722264645136,-18146.1531709,0.00013678,2]
[333593334,1722264645146,-7106.45,0.0001368,2]
[333593336,1722264645155,-189.73840327,0.00013688,2]
[333593338,1722264645164,-130335.68981055,0.00013688,2]
[333593340,1722264645176,-321.8,0.00013688,2]
[333593344,1722264645201,-2707.58577157,0.00013688,2]
[333593346,1722264645214,-2713.860445,0.00013688,2]
[333593348,1722264645228,-1206.4336295,0.00013688,2]
[333593351,1722264645243,-487.71149773,0.00013688,2]
[333593497,1722264646939,-19958.63998004,0.00013688,2]
[333593522,1722264692047,154.68290005,9.999e-05,2]
[333593537,1722264890598,244.89057225,9.999e-05,2]
[333593539,1722265174786,-24900.0,0.00012121,2]
[333593543,1722265538098,154.69833824,9.999e-05,2]
[333593544,1722265565616,613.81317929,9.999e-05,2]
[333593545,1722265576211,16418.81325197,9.999e-05,2]
[333593546,1722265580077,805.65848734,9.999e-05,2]
[333593547,1722265581714,1210.36716046,9.999e-05,2]
[333593548,1722265589514,154.83736516,9.999e-05,2]
[333593558,1722265645068,216.22864078,9.999e-05,2]
[333593565,1722265683294,813.13413846,9.999e-05,2]
[333593567,1722265698286,813.13413846,9.999e-05,2]
[333593571,1722265798188,154.69833824,9.999e-05,2]
[333593661,1722265832108,-161.21031,0.00011473,2]
[333593663,1722265832119,-300.0,0.00011733,2]
[333593665,1722265832130,-63.59124627,0.00011734,2]
[333593869,1722265839504,-24836.40875373,0.00011734,2]
[333593870,1722265839514,-161.21031,0.00011864,2]
[333593871,1722265839524,-191.49221591,0.00012021,2]
[333593872,1722265839534,-154.97168506,0.00012119,2]
[333593873,1722265839543,-319.40039305,0.0001212,2]
[333593874,1722265839554,-250.0,0.00012175,2]
[333593875,1722265839563,-250.0,0.00012208,2]
[333593876,1722265839573,-250.0,0.00012241,2]
[333593877,1722265839586,-161.21031,0.00012255,2]
[333593878,1722265839597,-250.0,0.00012275,2]
[333593880,1722265839607,-250.0,0.00012308,2]
[333593881,1722265839617,-250.0,0.00012342,2]
[333593882,1722265839627,-250.0,0.00012375,2]
[333593883,1722265839637,-250.0,0.00012408,2]
[333593884,1722265839647,-250.0,0.00012442,2]
[333593885,1722265839656,-250.0,0.00012475,2]
[333593886,1722265839665,-250.0,0.00012509,2]
[333593887,1722265839675,-250.0,0.00012542,2]
[333593888,1722265839685,-250.0,0.00012575,2]
[333593889,1722265839695,-250.0,0.00012609,2]
[333593890,1722265839704,-250.0,0.00012642,2]
[333593891,1722265839714,-161.21031,0.00012646,2]
[333593892,1722265839723,-250.0,0.00012676,2]
[333593893,1722265839732,-250.0,0.00012709,2]
[333593894,1722265839743,-250.0,0.00012742,2]
[333593895,1722265839755,-250.0,0.00012776,2]
[333593896,1722265839764,-250.0,0.00012809,2]
[333593899,1722265839774,-420.0,0.00012906,2]